Cogmind - Beta 9.6 @@@ ROGUE MODE // 2020.08.25 @ 12:11:11 Player: Cracklepappy Result: Destroyed by G-34 Mercenary with Small Laser Performance ------------- Evolutions (0) 0 Regions Visited (2) 400 Robots Destroyed (25) 125 Value Destroyed (490) 490 Prototype IDs (0) 0 Alien Tech Used (0) 0 Bonus (0) 0 TOTAL SCORE: 1015 Bonus ------- None Cogmind --------- Core Integrity 0/250 Matter 280/300 Energy 73/100 System Corruption 0% Temperature Cool (183) Movement Treading (180) Ox1 Location -10/Mines Parts ------- > --- POWER (1) -------- (None) > --- PROPULSION (2) --- Light Treads Light Treads > --- UTILITY (2) ------ High-capacity Storage Unit High-capacity Storage Unit > --- WEAPON (2) ------- (None) > --- INVENTORY (20) --- Light Ion Engine Light Nuclear Core Light Treads Improved Heat Sink High-capacity Storage Unit High-capacity Storage Unit Large Matter Pod (148) Signal Interpreter Improved Terrain Scanner Improved Targeting Computer Improved Targeting Computer Improved Targeting Computer Light Armor Plating Datajack Mining Laser Peak State ------------ > --- POWER ------------ Light Ion Engine > --- PROPULSION ------- Wheel Compact Wheel > --- UTILITY ---------- High-capacity Storage Unit High-capacity Storage Unit > --- WEAPON ----------- Assault Rifle Assault Rifle > --- INVENTORY -------- Light Ion Engine Light Treads Light Treads Light Treads Wheel Compact Wheel Medium Storage Unit High-capacity Storage Unit High-capacity Storage Unit Improved Terrain Scanner Small Laser Light Assault Rifle Light Assault Rifle Light Assault Rifle Light Assault Rifle Light Assault Rifle Light Assault Rifle Datajack Mining Laser [Rating: 9] Favorites ----------- Power Ion Engine Engine Ion Engine Propulsion Compact Wheel Treads Light Treads Wheel Compact Wheel Utility High-capacity Storage Unit Device Improved Terrain Scanner Storage High-capacity Storage Unit Weapon Light Assault Rifle Energy Gun Particle Gun Ballistic Gun Light Assault Rifle Special Weapon Mining Laser Build | -11 -10 -10 ------- Run | Scr Mat Min Slots Evolved . | . . . Power . | . . . Propulsion . | . . . Utility . | . . . Weapon . | . . . Parts Attached 30 | 7 14 9 Power 5 | 1 2 2 Engine 5 | 1 2 2 Core . | . . . Reactor . | . . . Propulsion 6 | 2 1 3 Treads 2 | . . 2 Leg . | . . . Wheel 4 | 2 1 1 Hover . | . . . Flight . | . . . Utility 7 | 2 5 . Device 2 | 1 1 . Storage 5 | 1 4 . Processor . | . . . Hackware . | . . . Protection . | . . . Artifact . | . . . Weapon 12 | 2 6 4 Energy Gun 1 | . . 1 Energy Cannon . | . . . Ballistic Gun 8 | 2 3 3 Ballistic Cannon . | . . . Launcher . | . . . Special Weapon 3 | . 3 . Impact Weapon . | . . . Slashing Weapon . | . . . Piercing Weapon . | . . . Special Melee Weapon . | . . . Unidentified Prototypes . | . . . Parts Lost 12 | . 2 10 Power 2 | . . 2 Propulsion 3 | . . 3 Utility . | . . . Weapon 7 | . 2 5 Highest Loss Streak 7 | . 1 7 Average Slot Usage (%) 98 | . 100 93 Engine 13 | . 14 10 Wheel 27 | . 28 24 Device 1 | . 1 . Storage 26 | . 26 28 Ballistic Gun 25 | . 25 25 Special Weapon 1 | . 2 . Naked Turns . | . . . Heaviest Build 73 | 12 73 71 Greatest Support 40 | 26 26 40 Greatest Overweight (x) 2 | . 2 2 Average Overweight (x) 1 | . 1 1 Largest Inventory Capacity 20 | 6 20 20 Average Capacity 16 | 5 16 20 Most Carried 20 | 6 20 20 Average Carried 16 | 3 16 19 Final Capacity 20 | 6 20 20 Final Carried 20 | 6 20 15 Class Distribution -------------------- 75% | Hauler-Mutant 24% | Mutant Dominant Class ---------------- Hauler-Mutant | -10/Materials Hauler-Mutant | -10/Mines Resources | -11 -10 -10 ----------- Run | Scr Mat Min Matter Collected 908 | 271 414 223 Remotely . | . . . Salvage Created 933 | 101 666 166 Parts 63 | 5 50 8 Haulers Intercepted 1 | . 1 . Recyclers Shooed 2 | . 2 . Parts Field Recycled . | . . . Retrieved Matter . | . . . Parts Self-Destructed . | . . . Prevented . | . . . Kills | -11 -10 -10 ------- Run | Scr Mat Min Combat Hostiles Destroyed 15 | . 10 5 Guns 15 | . 10 5 Classes Destroyed 8 | 2 5 1 Worker 1 | . . 1 Builder 2 | . 2 . Tunneler 2 | 1 1 . Hauler 1 | . 1 . Recycler 3 | 1 2 . Watcher 1 | . 1 . Swarmer 5 | . 3 2 Grunt 10 | . 7 3 Best Kill Streak 6 | 2 6 2 Combat Bots Only 3 | . 3 2 Max Kills in Single Turn 2 | 1 2 1 Gunslinging . | . . . Exploded . | . . . Melee . | . . . Uniques/NPCs Destroyed . | . . . Combat | -11 -10 -10 -------- Run | Scr Mat Min Damage Taken 1447 | . 598 849 Core 251 | . 65 186 Absorbed by Shields . | . . . Core Remaining (%) 100 | 100 . . Volleys Fired 109 | 4 72 33 Largest 2 | 2 2 2 Hottest 100 | 40 100 65 Shots Fired 194 | 8 131 55 Gun 183 | 8 120 55 Cannon . | . . . Launcher . | . . . Special 11 | . 11 . Kinetic 173 | 8 120 45 Thermal 21 | . 11 10 Explosive . | . . . Electromagnetic . | . . . Robot Hit Streak 9 | 4 9 9 Robot Miss Streak 5 | 1 3 5 Penetration Max . | . . . Secondary Targets 2 | . 1 1 Max Gunslinging Chain 1 | . 1 1 Shots Hit Robots 113 | 4 80 29 Core Hits 44 | 3 27 14 Critical Hits 1 | . . 1 Critical Kills 1 | . . 1 Critical Parts Destroyed . | . . . Melee Attacks . | . . . Impact . | . . . Slashing . | . . . Piercing . | . . . Sneak Attacks . | . . . Combat Hostiles . | . . . Follow-up Attacks . | . . . Damage Inflicted 1175 | 49 863 263 Guns 1175 | 49 863 263 Cannons . | . . . Explosions . | . . . Melee . | . . . Ramming . | . . . Kinetic 1112 | 49 863 200 Thermal 63 | . . 63 Explosive . | . . . Electromagnetic . | . . . Impact . | . . . Slashing . | . . . Piercing . | . . . Highest Corruption . | . . . Average Corruption . | . . . Corruption Purged . | . . . Overload Shots . | . . . Overflow Damage . | . . . Projectiles . | . . . Explosions . | . . . Melee . | . . . Knockbacks . | . . . Impact . | . . . Kinetic . | . . . Secondary . | . . . Self-Inflicted Damage . | . . . Shots . | . . . Rammed . | . . . Targets Rammed . | . . . Kicked . | . . . Crushed . | . . . Highest Temperature 177 | . 60 177 Average Temperature 26 | . 17 49 Received Heat Transfer 342 | . 195 147 Siege Activations . | . . . Robots Corrupted . | . . . Combat Hostiles . | . . . Parts Fried . | . . . Impact Corruptions . | . . . Robots Melted . | . . . Combat Hostiles . | . . . Parts Melted . | . . . Heat Transferred 148 | . . 148 Parts Sabotaged . | . . . Parts Stolen . | . . . Parts Stripped . | . . . Power Chain Reactions . | . . . Missiles Intercepted . | . . . Alert | -11 -10 -10 ------- Run | Scr Mat Min Peak Influence 180 | 10 180 101 Average Influence 55 | 2 55 70 Maximum Alert Level . | . . . Low Security (%) 100 | 100 100 100 Level 1 . | . . . Level 2 . | . . . Level 3 . | . . . Level 4 . | . . . Level 5 . | . . . High Security . | . . . Max Security . | . . . Squads Dispatched 1 | . 1 . Investigation 1 | . 1 . Extermination . | . . . Reinforcement . | . . . Assault . | . . . Garrison . | . . . Intercept . | . . . Construction Impeded . | . . . Haulers Reinforced . | . . . Stealth | -11 -10 -10 --------- Run | Scr Mat Min Distress Signals . | . . . Communications Jammed . | . . . Distress Signals . | . . . Times Spotted 33 | . 16 17 Peak Tracking Total 10 | . 4 10 Tactical Retreats . | . . . Traps | -11 -10 -10 ------- Run | Scr Mat Min Traps Triggered 3 | . 3 . Indirectly . | . . . Trap Hack Attempts . | . . . Triggered . | . . . Disarmed . | . . . Reprogrammed . | . . . Reused . | . . . Traps Extracted . | . . . Installed . | . . . Triggered . | . . . Machines | -11 -10 -10 ---------- Run | Scr Mat Min Machines Disabled 1 | . 1 . Max in Single Turn 1 | . 1 . Machines Sabotaged . | . . . Garrisons Compromised . | . . . Overloaded Fab Kills . | . . . Fab Network Shutdowns . | . . . Hacking | -11 -10 -10 --------- Run | Scr Mat Min Machines Accessed 4 | . 4 . Terminals 4 | . 4 . Fabricators . | . . . Repair Stations . | . . . Recycling Units . | . . . Scanalyzers . | . . . Garrison Access . | . . . Total Hacks 8 | . 8 . Successful 2 | . 2 . Failed 6 | . 6 . Catastrophic 3 | . 3 . Database Lockouts . | . . . Manual 6 | . 6 . Terminals 8 | . 8 . Fabricators . | . . . Repair Stations . | . . . Recycling Units . | . . . Scanalyzers . | . . . Garrison Access . | . . . Terminal Hacks 2 | . 2 . Branch Access Points 1 | . 1 . Locate Traps 1 | . 1 . Fabricator Hacks . | . . . Repair Station Hacks . | . . . Recycling Unit Hacks . | . . . Scanalyzer . | . . . Garrison Access Hacks . | . . . Unauthorized Hacks . | . . . Terminals . | . . . Fabricators . | . . . Repair Stations . | . . . Recycling Units . | . . . Scanalyzers . | . . . Garrison Access . | . . . Data Cores Recovered . | . . . Used . | . . . Hacking Detections 4 | . 4 . Full Trace Events . | . . . Feedback Events . | . . . Feedback Blocked . | . . . Robot Schematics Acquired . | . . . Robots Built . | . . . Matter . | . . . Time . | . . . Total Robot Build Rating . | . . . Part Schematics Acquired . | . . . Parts Built . | . . . Matter . | . . . Time . | . . . Total Part Build Rating . | . . . Parts Repaired . | . . . Time . | . . . Parts Recycled . | . . . Recycled Matter . | . . . Retrieved Matter . | . . . Retrieved Components . | . . . Parts Scanalyzed . | . . . Part Schematics Acquired . | . . . Parts Damaged . | . . . Bothacking | -11 -10 -10 ------------ Run | Scr Mat Min Used RIF Installer . | . . . Robots Hacked . | . . . Non-combat . | . . . Combat . | . . . Robot Hacks Applied . | . . . Relay Couplers Released . | . . . Robots Rewired . | . . . Allies Hacked . | . . . Hacks Repelled . | . . . Allies | -11 -10 -10 -------- Run | Scr Mat Min Total Allies . | . . . Largest Group . | . . . Highest-Rated Group . | . . . Highest-Rated Ally . | . . . Total Orders . | . . . Ally Attacks . | . . . Total Damage . | . . . Kills . | . . . Allies Corrupted . | . . . Allies Melted . | . . . Intel | -11 -10 -10 ------- Run | Scr Mat Min Robot Analysis Total . | . . . Derelict Logs Recovered . | . . . Drone Launches . | . . . Drone Recoveries . | . . . Exploration | -11 -10 -10 ------------- Run | Scr Mat Min Turns Passed 1266 | 85 877 304 Spaces Moved 761 | 64 517 180 Core 8 | 8 . . Treads 8 | . . 8 Legs . | . . . Wheels 745 | 56 517 172 Hover . | . . . Flight . | . . . Fastest Speed 50 | 50 90 110 Average Speed 104 | 85 104 113 Slowest Speed 180 | 90 110 180 Overloaded Moves . | . . . Propulsion Burnouts . | . . . Robots Hopped . | . . . Cave-ins Triggered . | . . . Exploration Rate (%) 40 | 4 82 36 Regions Visited 2 Branch Regions 1 Pre-discovered Areas . | . . . Known Exits Taken 1 | . 1 . Unknown Exits Taken 1 | 1 . . Scrap Searched 2 | . . 2 Spaces Dug 9 | . 9 . Terrain Destroyed 10 | . 10 . Melee . | . . . Projectile 10 | . 10 . AOE . | . . . Actions | -11 -10 -10 --------- Run | Scr Mat Min Total 1039 | 84 720 235 Wait 88 | . 77 11 Move 759 | 63 516 180 Hop . | . . . Pick Up 36 | 10 25 1 Fast Attach 5 | 3 1 1 Attach 13 | 4 3 6 Detach . | . . . Swap 12 | . 10 2 Drop 17 | . 16 1 Fire 109 | 4 72 33 Melee . | . . . Ram . | . . . Kick . | . . . Crush . | . . . Escape Stasis . | . . . Rewire . | . . . Trap . | . . . Miscellaneous . | . . . Route ------- -11/Scrapyard -10/Materials (discovered 4 exits: [*Mat x2] / *Min x2) -10/Mines History --------- Turn | Location | Event 2 | -11/Scrapyard | Met Revision 17 24 | -11/Scrapyard | Discovered new exit (range 16) 86 | -11/Scrapyard | Entered Materials 263 | -10/Materials | Discovered new exit (range 7) 304 | -10/Materials | Build established: Mutant 476 | -10/Materials | Identified exit to Mines 621 | -10/Materials | Build established: Hauler-Mutant 822 | -10/Materials | Discovered new exit (range 4) 963 | -10/Materials | Entered Mines 1033 | -10/Mines | Core integrity fell below 50% 1198 | -10/Mines | Assembled infested the area 1228 | -10/Mines | Core integrity fell below 20% 1267 | -10/Mines | Destroyed by G-34 Mercenary with Small Laser Last Messages --------------- 01230_ Lgt. Assault Rifle destroyed. 01230_ Com. Wheel destroyed. 01232_ The unstable cave ceiling collapses. 01237_ Lgt. Assault Rifle destroyed. 01239_ The unstable cave ceiling collapses. 01241_ U-05 Engineer lays Concrete. 01242_ U-05 Engineer builds a Wall. 01244_ The unstable cave ceiling collapses. 01244_ as-32684 destroyed. 01244_ as-64778 destroyed. 01244_ D-53 Grenadier destroyed. 01245_ The unstable cave ceiling collapses. 01245_ D-53 Grenadier knocked back. 01247_ U-05 Engineer lays Concrete. 01250_ D-53 Grenadier destroyed. 01251_ U-05 Engineer destroyed. 01252_ The unstable cave ceiling collapses. 01263_ K-01 Serf destroyed. 01265_ G-47 Trooper destroyed. 01267_ Particle Gun destroyed. Map ----- +----------------------------------------------------+ | ?????????????????????????????????????????????????? | | ?????????????????????????????????????????????????? | | ?????????????????????????????????????????????????? | | ?????????????????????????????????????????????????? | | ?????????????????????????????????????????????????? | | ?????????????????????????????????????????????????? | | ?????????????????????????????????????????????????? | | ?????????????????????????????????????????????????? | | ?????????????????????????????????????????????????? | | ???????????????????????#??????####???????????????? | | ??????????????????????? ####### ##??????????????? | | ?????????????????????? ## #??????????????? | | ????????????????????## #= ##?????????????? | | ????????????????????? a% ##????????????? | | ??????????????????????? a " ##???????????? | | ???????????????????????# ] #???????????? | | ??????????????????????? a % | ##??????????? | | ???????????????????????# # ##?????????? | | ???????????????????????# # # * ##????????? | | ???????????????????????# # # # %" #????????? | | ???????????????????????# ## #???????? | | ???????????????????????# !| ###?? ?????? | | ???????????????????????# *% ###?????? ???? | | ???????????????????????# # # #####????? ####??? | | ???????????????????????# # ###### ##???????????? | | ???????????????????????# @###???# ##??????????? | | ???????????????????????# #?????# ##?????????? | | ???????????????????????# #?????## #?????????? | | ???????????????????????#a*#??????## #?????????? | | ???????????????????????#[%##??????## ##????????? | | ??????????????????????## ! ##??????## ####?????? | | ?????????????????????## #???????## ##????? | | ?????????????????????# #????????## ###??? | | ?????????????????????# g##?????????### ##?? | | ?????????????????????# ##???????????## ### | | ????????????????????## = ##???????????# ## | | ????????????????????# =%* #######????## | | ??????????????????# ## ###### | | ????????????????# #?## | | ???????????????# ???## | | ??????????????# ????## ### | | ?????????????? ## ?????### # #?## | | ?????????????? #?##????????## ## #??## | | ?????????????? #?????????????## ## #???#### | | ??????????????? ????????????????## ## ####???? | | ?????????????????????????????????## ### ##??? | | ??????????????????????????????????####?# #??? | | ???????????????????????????????????????# #??? | | ???????????????????????????????????????# ##??? | | ??????????????????????????????????????## #???? | +----------------------------------------------------+ Best States ------------- Heat Dissipation 25 Energy Generation 10 Energy Capacity 250 Matter Stores 300 Matter Capacity 300 Sight Range 16 Terrain Scan Range 16 Terrain Scan Density 10 Evasion (%) 50 Recoil Reduction 2 Item Schematics ----------------- None Robot Schematics ------------------ None Fabricated ------------ Nothing Alien Tech Used ----------------- None Achievements -------------- None Challenges ------------ None Game ------ Seed AssemblyProtonUnit Manual? 0 Play Time 00:17:30 Cumulative 130.8 hours Start 2020.08.25 @ 11:48:38 End 2020.08.25 @ 12:11:11 Sessions 1 Manual Loads 0 Difficulty Rogue Special Mode None Game No. 159 Rogue 159 Adventurer 0 Explorer 0 Win Type - Total 2 Types 2/0/0/0/0/0/0 Lore% 51 Gallery% 66 Achievement% 47 Wizard Run 0 Options --------- ASCII 0 Keyboard 0 Movement Numpad Keybinds 0 Fullscreen 2 Font 24/Smallcaps Map View 76x50 Tactical HUD 1 Map Filters NONE Filters NONE Steam 1 RUN: 13593fd2-ca87-4275-a85e-ca45c66f02cf